[Event "Reykjavik Open 2025"]
[Site "Reykjavik"]
[Date "2025.04.13"]
[Round "7.1"]
[White "Ivanchuk, Vasyl"]
[Black "Maghsoodloo, Parham"]
[Result "1/2-1/2"]
[Annotator "TA"]
[ECO "B56"]
[WhiteElo "2604"]
[BlackElo "2684"]
[PlyCount "122"]
[EventDate "2025.04.09"]
[EventType "swiss"]
[EventCountry "ISL"]
[SourceTitle "playchess.com"]
[Source "ChessBase"]
[SourceQuality "1"]
[TimeControl "40/5400+30:1800+30"]

{[%evp 16,122,40,42,50,27,21,29,47,43,52,42,41,38,37,44,39,40,39,39,46,45,52,50,83,33,34,34,45,48,51,43,99,93,112,78,62,67,96,95,121,113,114,119,155,87,110,62,122,121,157,109,152,85,239,148,122,142,158,79,56,66,69,26,16,0,0,0,0,0,0,0,30,34,141,129,223,0,0,0,0,0,0,0,0,0,0,0,0,0,0,0,19,0,0,0,0,0,0,0,0,0,0,0,0,0,0,0,0]} 1. e4 {[%emt 0:00:10]} c5 {[%emt 0:00:36]} 2. Nf3 {[%emt 0:00:07]} d6 {[%emt 0:00:04]} 3. d4 {[%emt 0:00:25]} cxd4 {[%emt 0:00:06]} 4. Nxd4 {[%emt 0:00:03]} Nf6 {[%emt 0:00:07]} 5. f3 {[%emt 0:00:07]} e5 {[%emt 0:02:06]} 6. Nb3 {[%emt 0:00:05]} a5 {[%emt 0:01:15]} 7. Bb5+ {[%emt 0:00:23]} Nc6 {[%emt 0:02:48]} 8. Nc3 {[%emt 0:24:04]} Be7 {[%emt 0:06:30]} 9. Be3 {[%emt 0:02:29]} O-O {[%emt 0:00:10][%cal Od6d5] B56: Classical Sicilian: Unusual Lines.} 10. O-O {[%emt 0:07:28]} Na7 {[%emt 0:07:58]} 11. Bd3 {[%emt 0:08:06]} Be6 {[%emt 0:06:16] White has an edge.} 12. Qe2 {[%emt 0:02:43]} Nc8 {[%emt 0:10:28]} 13. Nd2 $146 {[%emt 0:11:53]} (13. Rfd1 a4 14. Nd2 a3 15. b3 Qa5 16. Nb5 d5 17. Bf2 d4 18. Bg3 Nd7 19. f4 exf4 20. Bxf4 {1-0 Hutois,M (2279)-Abergel,T (2475) Sautron op 19th 2019 (3.3)}) 13... Nb6 {[%emt 0:05:03]} 14. Nc4 {[%emt 0:01:05]} Nxc4 {[%emt 0:15:39]} 15. Bxc4 {[%emt 0:00:08]} a4 {[%emt 0:00:01]} 16. Rfd1 {[%emt 0:05:18][%cal Bf1d1,Bd1d5,Bd5b5,Bb5b7][%mdl 32]} Qc8 {[%emt 0:03:00]} 17. Nd5 {[%emt 0:01:56]} Nxd5 {[%emt 0:00:18]} 18. Bxd5 {[%emt 0:00:03]} Bxd5 {[%emt 0:03:00]} 19. Rxd5 {[%emt 0:00:02]} a3 {[%emt 0:03:09]} 20. Rb1 {[%emt 0:02:36]} (20. b3 $16) 20... axb2 $14 {[%emt 0:03:06]} 21. Rxb2 {[%emt 0:00:03]} f5 {[%emt 0:06:38]} 22. exf5 {[%emt 0:06:21]} Rxf5 {[%emt 0:00:09][%cal Oe5e4]} 23. Rdb5 {[%emt 0:00:14]} Bf8 {[%emt 0:00:13]} (23... Rf8 $14) 24. Rxb7 $16 {[%emt 0:05:06] White plays on the queen side and is better} Qe6 {[%emt 0:07:56]} 25. c4 {[%emt 0:09:30]} e4 {[%emt 0:03:05]} 26. f4 {[%emt 0:00:46]} Rc8 {[%emt 0:03:56]} 27. R7b5 {[%emt 0:04:57]} g6 {[%emt 0:01:20]} 28. Rc2 {[%emt 0:01:18]} Ra8 {[%emt 0:03:30]} 29. h3 {[%emt 0:01:59]} h5 {[%emt 0:01:11]} 30. g4 {[%emt 0:03:40]} ({White should play} 30. Rd2) 30... hxg4 {[%emt 0:01:15]} 31. Qxg4 {[%emt 0:00:15]} (31. hxg4 $16 Rf7 32. Rg5) 31... Ra3 {[%emt 0:03:05]} (31... Rf6 $14) 32. Rg2 {[%emt 0:01:58][%csl LRf5,LRg6]} Kf7 {[%emt 0:00:01] [#]} 33. Rb7+ $1 {[%emt 0:00:35]} Ke8 {[%emt 0:00:01]} 34. Re2 {[%emt 0:00:54] White is more active.} (34. Qxg6+ $2 Qxg6 35. Rxg6 Rxe3 $19) (34. Rb3 $142 Rxb3 35. axb3) 34... Rc3 {[%emt 0:02:12]} (34... Be7 $16) 35. Rb8+ {[%emt 0:00:35]} Kf7 {[%emt 0:01:15]} 36. Qh4 {[%emt 0:00:17] Inhibits Qf6.} Rh5 {[%emt 0:00:30] [#]} 37. Qd8 {[%emt 0:00:05]} (37. Rb7+ $142 $1 Ke8 (37... Be7 $2 38. f5 $18) 38. Rb8+ Kf7 39. f5) 37... Qe7 {[%emt 0:00:31] ...Qxd8 is the strong threat.} 38. Qc8 {[%emt 0:00:26] Really sharp!} Kg8 $1 {[%emt 0:00:25]} 39. Kg2 {[%emt 0:01:12]} Qf7 {[%emt 0:00:30][%cal Oh5f5]} 40. c5 {[%emt 0:00:34]} Rf5 {[%emt 0:00:34]} 41. Qe8 {[%emt 0:27:18]} Qxe8 {[%emt 0:02:31]} 42. Rxe8 {[%emt 0:00:01]} d5 {[%emt 0:00:01]} 43. Rc8 {[%emt 0:01:35]} (43. Bd4 Rc4 44. Rd2 Kf7 $17) 43... Kh7 {[%emt 0:02:59]} 44. c6 {[%emt 0:02:18]} g5 {[%emt 0:05:43]} 45. fxg5 {[%emt 0:01:02] Rf2 is the strong threat.} Bc5 {[%emt 0:00:06]} (45... d4 $16 {keeps fighting.} 46. g6+ (46. Bxd4 Rxg5+ 47. Kf1 Rf5+ 48. Ke1 Rc1+ 49. Kd2 Bh6+ 50. Be3 Rc4 $16) 46... Kxg6 47. Bxd4 Rg5+ 48. Kf1 Rf5+ 49. Ke1 Rc1+ 50. Kd2 Bh6+ 51. Be3 Rfc5 52. Bxh6 Kxh6 53. Rxe4 Rxc6) 46. Bxc5 $2 {[%emt 0:00:39]} (46. Rb2 $18 {Rb7+ would kill now.} Rf8 (46... Rxe3 $2 {is the wrong capture.} 47. Rb7+ $18) 47. Rb7+ Kg6 48. Rxf8 Bxf8 49. c7) 46... Rxg5+ $11 {[%emt 0:00:05] The position is equal.} 47. Kh2 {[%emt 0:00:37]} Rxc5 {[%emt 0:00:05]} 48. Rg2 {[%emt 0:00:26]} Rxg2+ {[%emt 0:09:23]} 49. Kxg2 {[%emt 0:00:00][%mdl 4096] Endgame KR-KR. White is a pawn up.} d4 {[%emt 0:00:02]} 50. c7 {[%emt 0:00:57]} Rc2+ {[%emt 0:00:26]} 51. Kg3 {[%emt 0:00:17]} e3 {[%emt 0:00:01]} 52. Rd8 $1 {[%emt 0:00:47]} Rxc7 {[%emt 0:02:11] ( -> ...Re7)} 53. Rxd4 {[%emt 0:00:05]} Rc2 {[%emt 0:00:08]} 54. Ra4 {[%emt 0:00:51]} Kg6 {[%emt 0:01:37]} 55. Ra5 {[%emt 0:00:16]} Rf2 {[%emt 0:00:32]} 56. h4 {[%emt 0:00:36]} Rf1 {[%emt 0:02:17]} 57. Re5 {[%emt 0:00:05]} Ra1 {[%emt 0:00:04]} 58. Re6+ {[%emt 0:00:08]} Kg7 {[%emt 0:00:16]} 59. Re7+ {[%emt 0:00:07]} Kh6 {[%emt 0:00:25]} 60. Re6+ {[%emt 0:00:10]} Kg7 {[%emt 0:00:01]} 61. Rxe3 {[%emt 0:00:06]} Rxa2 {[%emt 0:00:04] Weighted Error Value: White=0.20 (precise) /Black=0.18 (very precise)   Missed win:     	White=1     	---        Mistake:       	White=5     	Black=5      Inaccurate:     	White=3     	Black=4      OK:         	White=16    	Black=23     Best:        	White=4     	Black=6      Strong:       	White=2     	Black=1} 1/2-1/2

[Event "Reykjavik Open 2025"]
[Site "Reykjavik"]
[Date "2025.04.13"]
[Round "7.2"]
[White "Lu, Shanglei"]
[Black "Gupta, Abhijeet"]
[Result "1/2-1/2"]
[Annotator "ChessBase"]
[ECO "B55"]
[WhiteElo "2618"]
[BlackElo "2576"]
[PlyCount "34"]
[EventDate "2025.04.09"]
[EventType "swiss"]
[EventCountry "ISL"]
[SourceTitle "playchess.com"]
[Source "ChessBase"]
[SourceQuality "1"]
[TimeControl "40/5400+30:1800+30"]

1. e4 {[%emt 0:00:11]} c5 {[%emt 0:00:33]} 2. Nf3 {[%emt 0:00:18]} d6 {[%emt 0:00:09]} 3. d4 {[%emt 0:00:11]} cxd4 {[%emt 0:00:12]} 4. Nxd4 {[%emt 0:00:07]} Nf6 {[%emt 0:00:22]} 5. f3 {[%emt 0:00:07]} e5 {[%emt 0:01:09]} 6. Nb3 {[%emt 0:00:22]} d5 {[%emt 0:01:01]} 7. Bg5 {[%emt 0:00:07]} Be6 {[%emt 0:00:07]} 8. Bxf6 {[%emt 0:00:07]} gxf6 {[%emt 0:00:03]} 9. exd5 {[%emt 0:00:06]} Qxd5 {[%emt 0:00:04]} 10. Qxd5 {[%emt 0:00:09]} Bxd5 {[%emt 0:00:03]} 11. Nc3 {[%emt 0:00:05]} Be6 {[%emt 0:00:05]} 12. O-O-O {[%emt 0:00:07]} Nd7 {[%emt 0:03:32]} 13. Nb5 {[%emt 0:00:22]} Ke7 {[%emt 0:02:38]} 14. Nc7 {[%emt 0:00:22]} Bh6+ {[%emt 0:00:19]} 15. Kb1 {[%emt 0:00:02]} Rad8 {[%emt 0:00:06]} 16. Nd5+ {[%emt 0:00:07]} Bxd5 {[%emt 0:00:04]} 17. Rxd5 {[%emt 0:00:07]} Nc5 {[%emt 0:00:21]} 1/2-1/2

[Event "Reykjavik Open 2025"]
[Site "Reykjavik"]
[Date "2025.04.13"]
[Round "7.3"]
[White "Safarli, Eltaj"]
[Black "Hjartarson, Johann"]
[Result "1-0"]
[Annotator "ChessBase"]
[ECO "C54"]
[WhiteElo "2617"]
[BlackElo "2461"]
[PlyCount "151"]
[EventDate "2025.04.09"]
[EventType "swiss"]
[EventCountry "ISL"]
[SourceTitle "playchess.com"]
[Source "ChessBase"]
[SourceQuality "1"]
[TimeControl "40/5400+30:1800+30"]

1. e4 {[%emt 0:00:03]} e5 {[%emt 0:00:08]} 2. Nf3 {[%emt 0:00:06]} Nc6 {[%emt 0:00:04]} 3. Bc4 {[%emt 0:00:06]} Bc5 {[%emt 0:00:20]} 4. c3 {[%emt 0:00:27]} Nf6 {[%emt 0:00:07]} 5. d4 {[%emt 0:00:06]} exd4 {[%emt 0:00:19]} 6. cxd4 {[%emt 0:00:07]} Bb4+ {[%emt 0:00:31]} 7. Nbd2 {[%emt 0:00:30]} Nxe4 {[%emt 0:05:44]} 8. d5 {[%emt 0:00:25]} Ne7 {[%emt 0:03:28]} 9. O-O {[%emt 0:02:47]} Nxd2 {[%emt 0:06:47]} 10. Nxd2 {[%emt 0:00:10]} O-O {[%emt 0:05:39]} 11. a3 {[%emt 0:00:23]} Bxd2 {[%emt 0:02:41]} 12. Bxd2 {[%emt 0:04:46]} d6 {[%emt 0:00:37]} 13. Re1 {[%emt 0:00:04]} Ng6 {[%emt 0:02:15]} 14. Rc1 {[%emt 0:00:13]} Bd7 {[%emt 0:08:02]} 15. Bf1 {[%emt 0:05:58]} a5 {[%emt 0:09:53]} 16. Qb3 {[%emt 0:07:44]} c5 {[%emt 0:03:43]} 17. Qg3 {[%emt 0:11:49]} Bf5 {[%emt 0:14:06]} 18. h4 {[%emt 0:04:51]} Ne5 {[%emt 0:04:09]} 19. h5 {[%emt 0:13:47]} f6 {[%emt 0:03:14]} 20. h6 {[%emt 0:00:37]} g6 {[%emt 0:00:20]} 21. a4 {[%emt 0:00:49]} b6 {[%emt 0:06:48]} 22. Bc3 {[%emt 0:01:07]} Ra7 {[%emt 0:01:58]} 23. f4 {[%emt 0:05:51]} Ng4 {[%emt 0:01:27]} 24. Qh4 {[%emt 0:03:40]} Re7 {[%emt 0:05:23]} 25. Rxe7 {[%emt 0:06:37]} Qxe7 {[%emt 0:00:03]} 26. Re1 {[%emt 0:00:09]} Qf7 {[%emt 0:00:55]} 27. Be2 {[%emt 0:08:15]} Ne3 {[%emt 0:00:15]} 28. Bb5 {[%emt 0:01:24]} Nc2 {[%emt 0:01:24]} 29. Re2 {[%emt 0:01:15]} Nd4 {[%emt 0:02:50]} 30. Bxd4 {[%emt 0:00:04]} cxd4 {[%emt 0:00:04]} 31. Qe1 {[%emt 0:01:31]} d3 {[%emt 0:00:52]} 32. Bxd3 {[%emt 0:02:44]} Qxd5 {[%emt 0:04:47]} 33. Bxf5 {[%emt 0:04:24]} Qxf5 {[%emt 0:01:08]} 34. Re8 {[%emt 0:05:12]} Qc5+ {[%emt 0:02:10]} 35. Kh2 {[%emt 0:00:18]} Qh5+ {[%emt 0:01:11]} 36. Kg3 {[%emt 0:00:04]} Qxh6 {[%emt 0:01:27]} 37. Qe6+ {[%emt 0:00:04]} Kh8 {[%emt 0:00:06]} 38. Qxf6+ {[%emt 0:01:34]} Kg8 {[%emt 0:00:03]} 39. Qe6+ {[%emt 0:00:18]} Kh8 {[%emt 0:00:05]} 40. Qf7 {[%emt 0:01:22]} Rxe8 {[%emt 0:00:44]} 41. Qxe8+ {[%emt 0:30:03]} Kg7 {[%emt 0:30:10]} 42. Qe7+ {[%emt 0:00:03]} Kg8 {[%emt 0:00:32]} 43. Qe6+ {[%emt 0:00:00]} Kg7 {[%emt 0:00:00]} 44. Qd7+ {[%emt 0:00:00]} Kg8 {[%emt 0:00:00]} 45. Qxd6 {[%emt 0:00:00]} Qh1 {[%emt 0:00:00]} 46. Qe6+ {[%emt 0:00:00]} Kg7 {[%emt 0:00:00]} 47. Qxb6 {[%emt 0:00:00]} Qe1+ {[%emt 0:00:00]} 48. Qf2 {[%emt 0:00:00]} Qb4 {[%emt 0:00:00]} 49. Qc2 {[%emt 0:00:00]} Qe1+ {[%emt 0:00:00]} 50. Kf3 {[%emt 0:00:00]} Kh6 {[%emt 0:00:00]} 51. Qe2 {[%emt 0:00:00]} Qb4 {[%emt 0:00:00]} 52. Qb5 {[%emt 0:00:00]} Qd2 {[%emt 0:00:00]} 53. Qg5+ {[%emt 0:00:00]} Kg7 {[%emt 0:00:00]} 54. Qe5+ {[%emt 0:00:00]} Kh6 {[%emt 0:00:00]} 55. Kg3 {[%emt 0:00:00]} Qb4 {[%emt 0:00:00]} 56. Kh4 {[%emt 0:01:01]} Qd2 {[%emt 0:00:00]} 57. Qf6 {[%emt 0:03:12]} Qe1+ {[%emt 0:00:00]} 58. Kh3 {[%emt 0:00:04]} Qh1+ {[%emt 0:00:00]} 59. Kg3 {[%emt 0:00:03]} Qe1+ {[%emt 0:00:00]} 60. Kh2 {[%emt 0:00:04]} Qb4 {[%emt 0:00:00]} 61. Kh3 {[%emt 0:00:53]} Qc5 {[%emt 0:00:00]} 62. Kg3 {[%emt 0:01:25]} Qe3+ {[%emt 0:00:00]} 63. Kh2 {[%emt 0:00:14]} Qc5 {[%emt 0:00:00]} 64. Qc3 {[%emt 0:03:10]} Qf2 {[%emt 0:01:39]} 65. Qg3 {[%emt 0:01:51]} Qc5 {[%emt 0:01:45]} 66. Qh3+ {[%emt 0:01:04]} Kg7 {[%emt 0:00:08]} 67. Qc3+ {[%emt 0:00:13]} Qxc3 {[%emt 0:00:20]} 68. bxc3 {[%emt 0:00:02]} Kf6 {[%emt 0:00:27]} 69. Kg3 {[%emt 0:01:32]} Ke6 {[%emt 0:00:18]} 70. Kf3 {[%emt 0:01:54]} Kd5 {[%emt 0:00:08]} 71. g4 {[%emt 0:01:27]} h6 {[%emt 0:00:56]} 72. Ke3 {[%emt 0:02:26]} Kc4 {[%emt 0:01:35]} 73. Ke4 {[%emt 0:00:36]} h5 {[%emt 0:00:46]} 74. gxh5 {[%emt 0:00:51]} gxh5 {[%emt 0:00:04]} 75. f5 {[%emt 0:00:14]} Kc5 {[%emt 0:00:21]} 76. f6 {[%emt 0:02:02]} 1-0

[Event "Reykjavik Open 2025"]
[Site "Reykjavik"]
[Date "2025.04.13"]
[Round "7.4"]
[White "Amar, Elham"]
[Black "Banusz, Tamas"]
[Result "1/2-1/2"]
[Annotator "ChessBase"]
[ECO "B30"]
[WhiteElo "2546"]
[BlackElo "2592"]
[PlyCount "23"]
[EventDate "2025.04.09"]
[EventType "swiss"]
[EventCountry "ISL"]
[SourceTitle "playchess.com"]
[Source "ChessBase"]
[SourceQuality "1"]
[TimeControl "40/5400+30:1800+30"]

1. e4 {[%emt 0:00:01]} c5 {[%emt 0:03:53]} 2. Nf3 {[%emt 0:00:12]} Nc6 {[%emt 0:00:13]} 3. Bb5 {[%emt 0:00:11]} e6 {[%emt 0:00:06]} 4. Bxc6 {[%emt 0:00:39]} bxc6 {[%emt 0:00:05]} 5. d3 {[%emt 0:00:19]} Qc7 {[%emt 0:00:28]} 6. O-O {[%emt 0:03:54]} Ne7 {[%emt 0:00:20]} 7. h4 {[%emt 0:00:48]} d6 {[%emt 0:00:29]} 8. h5 {[%emt 0:01:12]} h6 {[%emt 0:00:12]} 9. Nh2 {[%emt 0:01:13]} g5 {[%emt 0:02:43]} 10. hxg6 {[%emt 0:09:28]} Nxg6 {[%emt 0:00:50]} 11. f4 {[%emt 0:00:44]} Rg8 {[%emt 0:01:11]} 12. Qh5 {[%emt 0:02:23]} 1/2-1/2

[Event "Reykjavik Open 2025"]
[Site "Reykjavik"]
[Date "2025.04.13"]
[Round "7.5"]
[White "Muradli, Mahammad"]
[Black "Kirk, Ezra"]
[Result "1-0"]
[Annotator "ChessBase"]
[ECO "E94"]
[WhiteElo "2588"]
[BlackElo "2394"]
[PlyCount "75"]
[EventDate "2025.04.09"]
[EventType "swiss"]
[EventCountry "ISL"]
[SourceTitle "playchess.com"]
[Source "ChessBase"]
[SourceQuality "1"]
[TimeControl "40/5400+30:1800+30"]

1. d4 {[%emt 0:04:33]} Nf6 {[%emt 0:00:05]} 2. c4 {[%emt 0:00:07]} g6 {[%emt 0:00:06]} 3. Nc3 {[%emt 0:00:05]} Bg7 {[%emt 0:00:06]} 4. e4 {[%emt 0:00:12]} d6 {[%emt 0:00:08]} 5. Be2 {[%emt 0:00:13]} O-O {[%emt 0:00:33]} 6. Nf3 {[%emt 0:00:07]} Nbd7 {[%emt 0:00:10]} 7. O-O {[%emt 0:00:24]} e5 {[%emt 0:00:05]} 8. Be3 {[%emt 0:00:17]} Qe7 {[%emt 0:00:15]} 9. Qc2 {[%emt 0:01:14]} c6 {[%emt 0:02:04]} 10. d5 {[%emt 0:00:40]} c5 {[%emt 0:01:18]} 11. Rae1 {[%emt 0:01:21]} Nh5 {[%emt 0:08:21]} 12. g3 {[%emt 0:00:15]} Ndf6 {[%emt 0:05:07]} 13. Kg2 {[%emt 0:01:39]} Ng4 {[%emt 0:08:54]} 14. Bd2 {[%emt 0:00:36]} f5 {[%emt 0:10:47]} 15. exf5 {[%emt 0:01:54]} Bxf5 {[%emt 0:11:31]} 16. Bd3 {[%emt 0:00:57]} Bh6 {[%emt 0:09:11]} 17. Bxf5 {[%emt 0:05:13]} gxf5 {[%emt 0:05:59]} 18. h3 {[%emt 0:00:56]} Bxd2 {[%emt 0:00:07]} 19. Qxd2 {[%emt 0:00:11]} Ngf6 {[%emt 0:00:12]} 20. Qg5+ {[%emt 0:10:44]} Ng7 {[%emt 0:00:40]} 21. Qh6 {[%emt 0:05:45]} Kh8 {[%emt 0:10:37]} 22. Ng5 {[%emt 0:06:54]} a6 {[%emt 0:05:38]} 23. f4 {[%emt 0:05:07]} e4 {[%emt 0:00:13]} 24. Nd1 {[%emt 0:00:33]} Qe8 {[%emt 0:01:16]} 25. g4 {[%emt 0:02:46]} Qg6 {[%emt 0:08:24]} 26. Qh4 {[%emt 0:00:11]} b5 {[%emt 0:00:27]} 27. b3 {[%emt 0:00:45]} bxc4 {[%emt 0:00:14]} 28. bxc4 {[%emt 0:00:01]} Rab8 {[%emt 0:01:30]} 29. Ne3 {[%emt 0:01:46]} Rb2+ {[%emt 0:02:20]} 30. Kh1 {[%emt 0:00:28]} Rfb8 {[%emt 0:03:52]} 31. Rg1 {[%emt 0:05:00]} Rxa2 {[%emt 0:01:44]} 32. Rb1 {[%emt 0:00:16]} Rbb2 {[%emt 0:01:32]} 33. Rxb2 {[%emt 0:12:38]} Rxb2 {[%emt 0:00:05]} 34. gxf5 {[%emt 0:00:15]} Qh5 {[%emt 0:00:24]} 35. Qxh5 {[%emt 0:00:40]} Nfxh5 {[%emt 0:00:07]} 36. f6 {[%emt 0:00:16]} Nxf6 {[%emt 0:00:31]} 37. Nf5 {[%emt 0:00:09]} Rb1 {[%emt 0:03:54]} 38. Nf7+ {[%emt 0:00:08]} 1-0

[Event "Reykjavik Open 2025"]
[Site "Reykjavik"]
[Date "2025.04.13"]
[Round "7.6"]
[White "Royal, Shreyas"]
[Black "Gorshtein, Ido"]
[Result "1-0"]
[Annotator "ChessBase"]
[ECO "E51"]
[WhiteElo "2465"]
[BlackElo "2557"]
[PlyCount "65"]
[EventDate "2025.04.09"]
[EventType "swiss"]
[EventCountry "ISL"]
[SourceTitle "playchess.com"]
[Source "ChessBase"]
[SourceQuality "1"]
[TimeControl "40/5400+30:1800+30"]

1. d4 {[%emt 0:00:04]} Nf6 {[%emt 0:00:06]} 2. c4 {[%emt 0:00:03]} e6 {[%emt 0:00:07]} 3. Nc3 {[%emt 0:00:23]} Bb4 {[%emt 0:00:07]} 4. e3 {[%emt 0:00:04]} O-O {[%emt 0:01:08]} 5. Bd2 {[%emt 0:00:11]} d5 {[%emt 0:01:51]} 6. Nf3 {[%emt 0:00:10]} Nbd7 {[%emt 0:00:26]} 7. Rc1 {[%emt 0:00:38]} Be7 {[%emt 0:00:38]} 8. Qc2 {[%emt 0:00:42]} dxc4 {[%emt 0:09:06]} 9. Bxc4 {[%emt 0:00:09]} c5 {[%emt 0:00:03]} 10. a3 {[%emt 0:12:24]} a6 {[%emt 0:02:50]} 11. dxc5 {[%emt 0:00:44]} Bxc5 {[%emt 0:00:10]} 12. Ne4 {[%emt 0:06:17]} Be7 {[%emt 0:03:15]} 13. O-O {[%emt 0:01:45]} b5 {[%emt 0:01:24]} 14. Bd3 {[%emt 0:00:48]} Bb7 {[%emt 0:02:33]} 15. Bc3 {[%emt 0:02:48]} Nd5 {[%emt 0:02:40]} 16. Bd4 {[%emt 0:00:55]} f5 {[%emt 0:05:03]} 17. Nc5 {[%emt 0:08:51]} Bxc5 {[%emt 0:04:49]} 18. Bxc5 {[%emt 0:00:06]} Rc8 {[%emt 0:00:06]} 19. b4 {[%emt 0:00:04]} Nxc5 {[%emt 0:00:08]} 20. bxc5 {[%emt 0:00:02]} Qf6 {[%emt 0:01:21]} 21. Rfd1 {[%emt 0:08:39]} Rc7 {[%emt 0:03:29]} 22. Nd4 {[%emt 0:07:31]} Ne7 {[%emt 0:15:29]} 23. a4 {[%emt 0:07:05]} e5 {[%emt 0:04:41]} 24. Nb3 {[%emt 0:00:01]} b4 {[%emt 0:04:04]} 25. f3 {[%emt 0:05:30]} Kh8 {[%emt 0:01:29]} 26. e4 {[%emt 0:00:53]} Bc8 {[%emt 0:02:14]} 27. Bc4 {[%emt 0:02:51]} Ng6 {[%emt 0:05:25]} 28. Rd6 {[%emt 0:04:26]} Qe7 {[%emt 0:01:04]} 29. Rcd1 {[%emt 0:01:00]} fxe4 {[%emt 0:00:38]} 30. Qxe4 {[%emt 0:00:49]} Bf5 {[%emt 0:01:22]} 31. Qe3 {[%emt 0:01:34]} e4 {[%emt 0:09:18]} 32. fxe4 {[%emt 0:02:54]} Bxe4 {[%emt 0:02:58]} 33. Re6 {[%emt 0:01:12]} 1-0

[Event "Reykjavik Open 2025"]
[Site "Reykjavik"]
[Date "2025.04.13"]
[Round "7.7"]
[White "Garifullina, Leya"]
[Black "Adhiban, B.."]
[Result "1-0"]
[Annotator "ChessBase"]
[ECO "B80"]
[WhiteElo "2459"]
[BlackElo "2554"]
[PlyCount "109"]
[EventDate "2025.04.09"]
[EventType "swiss"]
[EventCountry "ISL"]
[SourceTitle "playchess.com"]
[Source "ChessBase"]
[SourceQuality "1"]
[TimeControl "40/5400+30:1800+30"]

1. e4 {[%emt 0:00:09]} c5 {[%emt 0:00:03]} 2. Nf3 {[%emt 0:00:07]} d6 {[%emt 0:00:05]} 3. d4 {[%emt 0:00:06]} cxd4 {[%emt 0:00:03]} 4. Nxd4 {[%emt 0:00:06]} Nf6 {[%emt 0:00:02]} 5. Nc3 {[%emt 0:00:08]} a6 {[%emt 0:00:01]} 6. Be3 {[%emt 0:01:42]} e6 {[%emt 0:00:08]} 7. a3 {[%emt 0:01:29]} b5 {[%emt 0:04:06]} 8. g4 {[%emt 0:01:15]} Bb7 {[%emt 0:04:48]} 9. Bg2 {[%emt 0:04:42]} Nfd7 {[%emt 0:00:20]} 10. g5 {[%emt 0:02:12]} Nc6 {[%emt 0:15:58]} 11. Nxc6 {[%emt 0:03:16]} Bxc6 {[%emt 0:00:02]} 12. h4 {[%emt 0:00:09]} Be7 {[%emt 0:04:27]} 13. Ne2 {[%emt 0:03:32]} O-O {[%emt 0:03:51]} 14. Nd4 {[%emt 0:01:31]} Bb7 {[%emt 0:00:04]} 15. Qg4 {[%emt 0:02:37]} Ne5 {[%emt 0:09:02]} 16. Qe2 {[%emt 0:02:55]} Nc4 {[%emt 0:12:34]} 17. O-O-O {[%emt 0:01:19]} Rc8 {[%emt 0:01:40]} 18. Kb1 {[%emt 0:04:01]} Qa5 {[%emt 0:13:01]} 19. Bc1 {[%emt 0:02:15]} b4 {[%emt 0:00:06]} 20. Qe1 {[%emt 0:07:51]} d5 {[%emt 0:02:26]} 21. exd5 {[%emt 0:01:28]} Qb6 {[%emt 0:01:25]} 22. a4 {[%emt 0:09:33]} Bc5 {[%emt 0:01:05]} 23. Nb3 {[%emt 0:00:23]} Bxf2 {[%emt 0:00:11]} 24. Qe2 {[%emt 0:01:39]} Bxd5 {[%emt 0:02:54]} 25. Bxd5 {[%emt 0:00:35]} exd5 {[%emt 0:00:04]} 26. a5 {[%emt 0:01:21]} Qa7 {[%emt 0:01:50]} 27. Rxd5 {[%emt 0:00:45]} Rfe8 {[%emt 0:01:51]} 28. Qd3 {[%emt 0:01:38]} Ne5 {[%emt 0:12:13]} 29. Qd2 {[%emt 0:03:03]} Nc4 {[%emt 0:01:01]} 30. Qxb4 {[%emt 0:01:50]} Qc7 {[%emt 0:00:48]} 31. Ka2 {[%emt 0:02:58]} Ne5 {[%emt 0:05:22]} 32. Qf4 {[%emt 0:05:00]} Ba7 {[%emt 0:03:28]} 33. Re1 {[%emt 0:03:59]} Bb8 {[%emt 0:00:03]} 34. Rc5 {[%emt 0:01:18]} Qd7 {[%emt 0:01:35]} 35. Rcxe5 {[%emt 0:02:13]} Rxe5 {[%emt 0:00:31]} 36. Rxe5 {[%emt 0:00:04]} Bxe5 {[%emt 0:00:04]} 37. Qxe5 {[%emt 0:00:05]} Rxc2 {[%emt 0:00:07]} 38. Qe4 {[%emt 0:01:28]} Qc8 {[%emt 0:01:28]} 39. Bd2 {[%emt 0:01:47]} Rc4 {[%emt 0:00:16]} 40. Qe5 {[%emt 0:01:50]} Qd7 {[%emt 0:00:54]} 41. Bc3 {[%emt 0:32:06]} f6 {[%emt 0:11:16]} 42. gxf6 {[%emt 0:00:00]} Ra4+ {[%emt 0:01:37]} 43. Kb1 {[%emt 0:00:00]} Rxh4 {[%emt 0:00:06]} 44. Nc1 {[%emt 0:00:00]} Rc4 {[%emt 0:06:27]} 45. fxg7 {[%emt 0:00:00]} Rc8 {[%emt 0:00:01]} 46. Qf6 {[%emt 0:00:00]} Qc6 {[%emt 0:00:36]} 47. Qd4 {[%emt 0:00:00]} h5 {[%emt 0:01:38]} 48. Nd3 {[%emt 0:00:00]} Qg6 {[%emt 0:02:44]} 49. Ka1 {[%emt 0:00:00]} h4 {[%emt 0:02:12]} 50. Nf4 {[%emt 0:00:00]} Qg4 {[%emt 0:00:16]} 51. Ka2 {[%emt 0:00:00]} Qf5 {[%emt 0:01:06]} 52. Nd5 {[%emt 0:00:00]} Kf7 {[%emt 0:01:32]} 53. Qa7+ {[%emt 0:00:00]} Ke6 {[%emt 0:00:01]} 54. Nf6 {[%emt 0:00:00]} Qb5 {[%emt 0:02:29]} 55. Qb6+ {[%emt 0:00:00]} 1-0